bitfinex/quotes_SOLUSD_20241218
["timestamp","ask_amount","ask_price","bid_price","bid_amount"]
[1734480892832,0.18206006,225.31,225.18,3.11498807]
[1734480893037,6.66124636,225.26,225.18,3.11498807]
[1734480893252,6.66124636,225.26,225.18,0.66594857]
[1734480895055,6.66124636,225.27,225.18,0.66594857]
[1734480895457,6.66124636,225.27,225.17,0.66593879]
[1734480895829,6.66124636,225.26,225.17,0.66593879]
[1734480896236,6.66124636,225.26,225.17,3.11497829]
[1734480896559,6.66124636,225.25,225.17,0.66593879]
[1734480896739,6.66124636,225.24,225.17,0.66593879]
[1734480896958,6.66124636,225.24,225.15,34.67327134]
[1734480897149,6.66124636,225.24,225.15,34.66558111]
[1734480897543,6.66124636,225.24,225.15,32.22423184]
[1734480897775,6.66124636,225.21,225.15,12.22423184]
[1734480897951,6.66124636,225.19,225.11,2.44134927]
[1734480898256,0.66681509,225.2,225.1,3.1075372]
[1734480898257,6.66124636,225.2,225.1,3.1075372]
[1734480898436,0.66681509,225.26,225.11,5.87766994]
[1734480898437,6.66124636,225.21,225.11,5.87766994]
[1734480898627,0.66681509,225.2,225.12,0.66616097]
[1734480898816,7.32806145,225.2,225.11,6.54383186]
[1734480900320,6.66124636,225.19,225.11,6.54383186]
[1734480900509,6.66124636,225.23,225.14,20.0]
[1734480900718,7.8347,225.28,225.12,11.55825769]
[1734480900719,6.66124636,225.2,225.12,11.55825769]
[1734480900921,7.32806145,225.19,225.12,5.87766994]
[1734480901224,6.66124636,225.21,225.13,0.666177]
[1734480901441,0.66681509,225.27,225.13,0.666177]
[1734480901442,6.66124636,225.2,225.13,0.666177]
[1734480901615,0.66681509,225.27,225.13,0.666177]
[1734480901616,6.66124636,225.23,225.13,6.53743972]
[1734480901815,7.32806145,225.22,225.13,6.53743972]
[1734480902038,6.66124636,225.21,225.13,6.53743972]
[1734480902341,34.47968544,225.28,225.13,6.53743972]
[1734480902342,0.66681509,225.27,225.13,6.53743972]
[1734480902514,6.66124636,225.21,225.13,6.53743972]
[1734480902915,0.66681509,225.27,225.14,5.87126272]
[1734480903135,0.66681509,225.27,225.15,0.66600557]
[1734480903341,6.66124636,225.24,225.15,6.53726829]
[1734480903645,6.66124636,225.22,225.15,6.53726829]
[1734480903820,6.66124636,225.23,225.15,8.979141]
[1734480904546,6.66124636,225.23,225.15,6.53726829]
[1734480905046,6.65452081,225.24,225.15,8.979141]
[1734480905217,6.65452081,225.24,225.15,6.53726829]
[1734480905543,0.66681509,225.27,225.15,6.53726829]
[1734480905730,6.65452081,225.25,225.16,5.87126272]
[1734480905940,1.6205,225.28,225.17,0.66592212]
[1734480906445,6.65452081,225.25,225.17,0.66592212]
[1734480906843,1.6205,225.28,225.17,0.66592212]
[1734480907047,6.65452081,225.24,225.17,0.66592212]
[1734480908943,0.18206006,225.31,225.18,5.87126272]
[1734480909238,6.83658087,225.31,225.19,0.66580825]
[1734480909444,0.18206006,225.31,225.2,5.87126272]
[1734480909651,0.18206006,225.31,225.21,0.66578176]
[1734480909873,6.83658087,225.31,225.21,0.66578176]
[1734480910454,6.65452081,225.3,225.21,6.53704448]
[1734480911439,6.65452081,225.3,225.22,5.87126272]
[1734480911746,6.65452081,225.3,225.23,0.66578528]
[1734480914035,6.65452081,225.29,225.23,0.66578528]
[1734480914642,6.65452081,225.3,225.23,0.66578528]
[1734480915328,6.64999367,225.3,225.23,0.66578528]
[1734480915530,6.64999367,225.29,225.22,5.87126272]
[1734480915746,6.64999367,225.26,225.22,5.87126272]
[1734480916152,6.64999367,225.26,225.16,9.08136963]
[1734480916153,6.64999367,225.24,225.17,0.66595609]
[1734480916353,6.64999367,225.24,225.17,6.53721881]
[1734480916658,6.64999367,225.25,225.17,6.53721881]
[1734480917059,6.64999367,225.24,225.17,6.53721881]
[1734480919371,0.84887515,225.31,225.18,5.87126272]
[1734480919564,6.64999367,225.25,225.18,5.87126272]
[1734480920075,7.31680876,225.24,225.18,5.87126272]
[1734480920373,6.64999367,225.2,225.17,5.38265186]
[1734480920595,6.64999367,225.19,225.12,8.48603819]
[1734480920752,1.6471,225.24,225.12,8.48603819]
[1734480920753,2.31391509,225.24,225.12,11.91994376]
[1734480921099,6.64999367,225.21,225.13,5.87126272]
[1734480921297,2.31391509,225.24,225.13,5.87126272]
[1734480921298,6.64999367,225.2,225.13,5.87126272]
[1734480921846,6.64999367,225.2,225.13,11.25391458]
[1734480922781,6.64999367,225.19,225.13,11.25391458]
[1734480923579,0.66681509,225.22,225.13,11.25391458]
[1734480923580,6.64999367,225.18,225.13,11.25391458]
[1734480923778,6.64999367,225.17,225.13,11.25391458]
[1734480924079,6.64999367,225.16,225.13,11.25391458]
[1734480924259,0.66681509,225.22,225.04,8.0217]
[1734480924260,6.64999367,225.14,225.06,2.44015137]
[1734480924463,6.64999367,225.11,225.05,8.48906168]
[1734480924791,6.64999367,225.1,225.05,5.38265186]
[1734480927578,6.64999367,225.09,225.05,5.38265186]
[1734480927770,6.64999367,225.07,225.0,2.44282426]
[1734480927964,6.64999367,225.07,225.0,7.82547612]
[1734480928174,6.64999367,225.08,225.0,7.82547612]
[1734480928474,6.64999367,225.08,225.0,5.38265186]
[1734480928676,6.64999367,225.09,225.0,7.82565064]
[1734480928865,0.66681509,225.13,225.0,7.82565064]
[1734480928866,6.64999367,225.07,225.0,7.82565064]
[1734480929190,6.64999367,225.07,225.0,5.38265186]
[1734480929570,6.64999367,225.08,225.0,5.38265186]
[1734480929769,0.66681509,225.13,225.0,5.38265186]
[1734480929770,6.64999367,225.07,225.0,5.38265186]
[1734480931191,6.64999367,225.08,225.0,5.38265186]
[1734480932382,0.66681509,225.13,225.03,20.0]
[1734480932581,8.0094,225.2,225.04,34.0346342]
[1734480932772,6.64999367,225.18,225.04,40.5560342]
[1734480932982,6.64999367,225.18,225.06,2.43794883]
[1734480933183,6.64999367,225.18,225.07,6.04886625]
[1734480933573,6.64999367,225.18,225.07,8.48681508]
[1734480933772,6.64999367,225.17,225.07,8.48681508]
[1734480934182,6.64999367,225.17,225.07,14.03445559]
[1734480934586,6.64999367,225.17,225.07,11.59650676]
[1734480935082,6.64999367,225.15,225.07,11.59650676]
[1734480935285,6.64999367,225.15,225.07,10.93029237]
[1734480935879,6.64999367,225.14,225.07,10.93029237]
[1734480936079,7.31680876,225.13,225.07,10.93029237]
[1734480936279,6.64999367,225.13,225.07,10.93029237]
[1734480937115,6.64999367,225.14,225.07,10.93029237]
[1734480937471,0.66681509,225.19,225.07,10.93029237]
[1734480937671,6.64999367,225.15,225.08,0.66629117]
[1734480937894,6.64999367,225.15,225.07,10.93029237]
[1734480938091,8.0094,225.2,225.08,0.66626604]
[1734480938401,6.64999367,225.21,225.1,20.0]
[1734480938724,6.64999367,225.21,225.11,11.59636479]
[1734480939591,6.46184304,225.21,225.11,11.59636479]
[1734480939781,6.64999367,225.21,225.11,11.59636479]
[1734480939980,10.39998627,225.21,225.11,11.59636479]
[1734480940197,10.39998627,225.21,225.13,2.43671911]
[1734480940413,10.39998627,225.21,225.11,14.0330839]
[1734480941171,10.39998627,225.21,225.11,11.59636479]
[1734480941917,0.66681509,225.24,225.11,11.59636479]
[1734480941918,10.39998627,225.2,225.11,11.59636479]
[1734480942200,10.39998627,225.19,225.11,11.59636479]
[1734480942387,10.39998627,225.18,225.11,11.59636479]
[1734480942584,0.66681509,225.24,225.11,11.59636479]
[1734480942791,10.39998627,225.22,225.11,11.59636479]
[1734480942990,10.39998627,225.23,225.11,11.59636479]
[1734480943386,10.39998627,225.23,225.14,20.0]
[1734480943585,10.39998627,225.23,225.15,0.66601594]
[1734480943900,10.39998627,225.24,225.15,0.66601594]
[1734480944112,10.39998627,225.25,225.15,26.0486678]
[1734480944314,10.39998627,225.26,225.16,5.38265186]
[1734480944480,10.39998627,225.26,225.17,0.66593539]
[1734480944802,12.00238627,225.29,225.17,6.04858725]
[1734480944987,10.39998627,225.29,225.2,20.0]
[1734480945304,0.66681509,225.38,225.25,20.0]
[1734480945509,10.92700277,225.36,225.26,0.66572106]
[1734480945681,10.92700277,225.36,225.26,6.04837292]
[1734480945682,0.5270165,225.36,225.26,6.04837292]
[1734480945879,11.59381786,225.36,225.26,6.04837292]
[1734480946083,10.92700277,225.36,225.26,6.04837292]
[1734480947107,10.39998627,225.35,225.26,6.04837292]
[1734480947477,10.92700277,225.36,225.26,11.59601343]
[1734480948294,0.5270165,225.36,225.26,11.59601343]
[1734480949289,0.5270165,225.36,225.27,5.54764051]
[1734480949504,0.5270165,225.36,225.28,0.66559386]
[1734480950006,10.92700277,225.36,225.28,0.66559386]
[1734480952513,0.5270165,225.36,225.29,23.776884]
[1734480952819,0.5270165,225.36,225.3,0.66551173]
[1734480953196,0.5270165,225.36,225.3,24.44239573]
[1734480953394,0.5270165,225.36,225.3,29.99003624]
[1734480954210,0.5270165,225.36,225.3,6.21315224]
[1734480954438,0.5270165,225.36,225.3,35.3726881]
[1734480955601,0.5270165,225.36,225.3,11.5958041]
[1734480956001,0.18207578,225.47,225.35,23.776884]
[1734480956320,0.18207578,225.47,225.36,6.21291422]
[1734480958608,0.18207578,225.47,225.39,20.0]
[1734480958819,0.18207578,225.47,225.4,0.66522547]
[1734480960389,10.39998627,225.46,225.38,0.66527278]
[1734480961926,10.39998627,225.46,225.38,6.04792464]
[1734480962756,10.58206205,225.47,225.38,6.04792464]
[1734480963661,0.18207578,225.47,225.38,0.66527278]
[1734480963863,0.18207578,225.47,225.39,6.04788265]
[1734480964032,0.18207578,225.47,225.39,11.59552316]
[1734480966148,0.18207578,225.47,225.42,20.0]
[1734480966325,0.18207578,225.47,225.43,6.04784222]
[1734480969027,0.18207578,225.47,225.43,11.59548273]
[1734480969847,0.18207578,225.47,225.44,5.54764051]
[1734480970045,0.18207578,225.47,225.45,6.04775001]
[1734480970451,0.18207578,225.47,225.45,16.44773601]
[1734480972062,0.18207578,225.47,225.45,6.04775001]
[1734480972454,0.18207578,225.47,225.45,5.38265186]
[1734480977553,10.39998627,225.46,225.4,10.399986]
[1734480977753,10.39998627,225.42,225.36,5.38265186]
[1734480978349,11.06680136,225.41,225.36,5.38265186]
[1734480978844,1.5653,225.4,225.36,5.38265186]
[1734480979044,10.39998627,225.38,225.28,0.66561204]
[1734480979266,10.39998627,225.38,225.28,6.0482639]
[1734480979459,10.39998627,225.39,225.28,6.0482639]
[1734480979762,11.96528627,225.4,225.28,6.0482639]
[1734480979972,1.5653,225.4,225.28,6.0482639]
[1734480980267,0.84889087,225.47,225.28,6.0482639]
[1734480980268,0.18207578,225.47,225.31,23.776884]
[1734480980438,0.18207578,225.47,225.3,1.5173]
[1734480980439,0.18207578,225.47,225.38,20.0]
[1734480980644,0.18207578,225.47,225.39,6.04788884]
[1734480981259,0.18207578,225.47,225.42,20.0]
[1734480981458,0.18207578,225.47,225.39,5.38265186]
[1734480981661,10.58206205,225.47,225.39,5.38265186]
[1734480981863,0.66681509,225.46,225.39,5.38265186]
[1734480983647,0.47860152,225.46,225.39,5.38265186]
[1734480983951,0.18207578,225.47,225.4,0.66541886]
[1734480984255,0.18207578,225.47,225.41,5.38265186]
[1734480984960,0.18207578,225.47,225.42,0.66525892]
[1734480985367,0.18207578,225.47,225.42,6.04791078]
[1734480985554,0.18207578,225.47,225.43,5.38265186]
[1734480985756,0.18207578,225.47,225.44,0.66521341]
[1734480986555,0.18207578,225.47,225.43,5.38265186]
[1734480988050,0.18207578,225.47,225.44,0.66521389]
[1734480988252,0.18207578,225.47,225.44,6.04786575]
[1734480989556,0.18207578,225.47,225.45,5.38265186]
[1734480989756,0.18207578,225.47,225.46,0.66507948]
[1734480989960,0.18207578,225.47,225.46,6.04773134]
[1734480992184,0.18207578,225.47,225.46,5.38265186]
[1734480993372,0.18207578,225.47,225.42,0.66512689]
[1734480993690,0.18207578,225.47,225.4,5.38265186]
[1734480993867,0.18207578,225.47,225.41,0.66525377]
[1734480994068,0.18207578,225.47,225.42,5.38265186]
[1734480994262,0.18207578,225.47,225.43,0.66521127]
[1734480994462,0.18207578,225.47,225.43,6.04786313]
[1734480994663,0.18207578,225.47,225.44,5.38265186]
[1734480995484,0.18207578,225.47,225.3,7.39232]
[1734480995485,10.39998627,225.45,225.3,7.39232]
[1734480995671,10.39998627,225.39,225.3,7.39232]
[1734480995872,10.39998627,225.41,225.3,3.3529468]
[1734480996092,2.2446773,225.47,225.3,3.3529468]
[1734480996274,10.39998627,225.45,225.3,8.23004311]
[1734480996670,10.39998627,225.45,225.31,4.87709631]
[1734480996870,10.39998627,225.36,225.31,4.87709631]
[1734480997068,10.39998627,225.36,225.26,0.66540576]
[1734480997594,10.39998627,225.34,225.24,0.66565587]
[1734480998874,10.39998627,225.32,225.24,0.66565587]
[1734480999175,10.39998627,225.34,225.24,0.6657813]
[1734480999381,0.47860152,225.33,225.24,0.6657813]
[1734480999776,10.39998627,225.34,225.24,0.6657813]
[1734480999976,11.98398627,225.36,225.24,5.54287761]
[1734481000186,1.584,225.42,225.25,4.87709631]
[1734481000388,1.584,225.42,225.28,20.0]
[1734481000679,1.584,225.42,225.33,20.0]
[1734481000913,1.584,225.42,225.34,0.66545577]
[1734481001468,10.87858779,225.41,225.32,20.0]
[1734481001672,10.87858779,225.41,225.31,0.66546265]
[1734481001992,10.39998627,225.39,225.29,5.5426702]
[1734481002200,10.39998627,225.37,225.24,0.66562219]
[1734481002387,10.39998627,225.35,225.25,20.0]
[1734481002575,10.39998627,225.33,225.26,0.66571177]
[1734481002775,10.39998627,225.32,225.24,0.66571649]
[1734481002981,10.39998627,225.34,225.24,0.66571649]
[1734481003283,0.47860152,225.33,225.24,0.66571649]
[1734481003475,10.39998627,225.34,225.24,0.66571649]
[1734481004090,10.39998627,225.34,225.24,20.66571649]
[1734481004309,0.47860152,225.38,225.24,20.66571649]
[1734481004486,10.39998627,225.36,225.24,20.66571649]
[1734481004693,0.47860152,225.35,225.24,20.66571649]
[1734481004880,10.39998627,225.36,225.24,20.66571649]
[1734481006110,10.39998627,225.38,225.24,20.66571649]
[1734481006421,10.39998627,225.4,225.28,20.0]
[1734481006600,0.47860152,225.39,225.29,0.66558222]
[1734481007807,10.39998627,225.38,225.28,20.0]
[1734481008007,0.47860152,225.37,225.28,20.0]
[1734481009220,2.01970152,225.49,225.32,20.0]
[1734481009515,10.39998627,225.42,225.32,20.0]
[1734481010020,10.39998627,225.42,225.33,0.66549672]
[1734481010523,10.39998627,225.4,225.32,20.0]
[1734481010723,10.39998627,225.42,225.32,20.0]
[1734481010922,10.39998627,225.42,225.33,0.66553336]
[1734481011096,10.39998627,225.44,225.33,0.66553336]
[1734481011622,0.18207578,225.47,225.38,20.0]
[1734481011819,0.18207578,225.47,225.39,0.66521629]
[1734481012015,0.18207578,225.47,225.4,23.776884]
[1734481012318,0.18207578,225.47,225.43,20.0]
[1734481012524,0.18207578,225.47,225.44,0.66514233]
[1734481013423,0.18207578,225.47,225.44,20.66514233]
[1734481014024,0.18207578,225.47,225.45,23.776884]
[1734481014228,0.18207578,225.47,225.46,0.66502973]
[1734481014611,0.18207578,225.47,225.46,24.44191373]
[1734481014923,0.18207578,225.47,225.46,37.17411004]
[1734481015126,0.18207961,225.56,225.5,23.776884]
[1734481015303,0.18207961,225.56,225.51,0.66484529]
[1734481016228,0.18207961,225.56,225.55,20.0]
[1734481017121,0.18207961,225.56,225.53,20.66481766]
[1734481019406,6.40445264,225.66,225.53,20.66481766]
[1734481019407,0.18395264,225.66,225.57,43.776884]
[1734481019610,0.18395264,225.66,225.62,20.0]
[1734481020220,0.18395264,225.66,225.61,20.0]
[1734481021029,10.39998627,225.64,225.51,23.776884]
[1734481021323,10.39998627,225.61,225.52,0.66480093]
[1734481021707,10.39998627,225.62,225.52,0.66480093]
[1734481021905,0.18395264,225.66,225.52,0.66480093]
[1734481021906,10.39998627,225.63,225.52,0.66480093]
[1734481022222,10.58393891,225.66,225.53,28.65398031]
[1734481022537,10.39998627,225.64,225.56,20.0]
[1734481022711,10.39998627,225.65,225.56,20.6648058]
[1734481023113,10.39998627,225.64,225.56,20.6648058]
[1734481023838,10.39998627,225.64,225.56,20.0]
[1734481024208,10.39998627,225.63,225.56,20.0]
[1734481024645,0.18395264,225.66,225.56,20.66483607]
[1734481024646,12.9513382,225.65,225.56,20.66483607]
[1734481024852,0.47860152,225.64,225.56,20.66483607]
[1734481025155,12.9513382,225.64,225.56,20.66483607]
[1734481025832,13.13529084,225.66,225.56,20.66483607]
[1734481026030,0.18395264,225.66,225.58,20.0]
[1734481026650,0.18395264,225.66,225.56,20.66472041]
[1734481026829,0.18395264,225.66,225.58,0.66473707]
[1734481027729,1.5411,225.73,225.57,0.66470509]
[1734481027730,12.9513382,225.69,225.57,0.66470509]
[1734481028662,0.47860152,225.68,225.57,0.66470509]
[1734481029063,12.9513382,225.69,225.57,0.66470509]
[1734481029369,12.9513382,225.67,225.56,20.0]
[1734481029536,0.47860152,225.66,225.56,20.0]
[1734481029970,12.9513382,225.67,225.54,0.66472197]
[1734481030826,12.9513382,225.66,225.54,0.66472197]
[1734481031045,0.47860152,225.65,225.53,5.54187315]
[1734481032226,0.47860152,225.65,225.56,20.0]
[1734481032430,12.9513382,225.67,225.56,20.66487615]
[1734481032657,0.47860152,225.66,225.56,20.66487615]
[1734481032853,13.42993972,225.66,225.56,20.66487615]
[1734481033539,12.9513382,225.64,225.53,5.54191569]
[1734481033736,12.9513382,225.59,225.53,4.87709631]
[1734481033934,2.03790152,225.63,225.5,0.66490627]
[1734481033935,12.9513382,225.6,225.5,0.66490627]
[1734481034134,0.47860152,225.59,225.47,0.66501235]
[1734481034538,13.42993972,225.59,225.47,0.66501235]
[1734481035341,12.9513382,225.58,225.47,0.66501235]
[1734481035676,13.42993972,225.57,225.47,0.66501235]
[1734481035838,12.9513382,225.58,225.47,0.66501235]
[1734481036034,0.47860152,225.57,225.47,0.66501235]
[1734481036654,13.42993972,225.57,225.49,20.0]
[1734481037034,12.9513382,225.55,225.46,4.87709631]
[1734481037357,0.47860152,225.54,225.46,4.87709631]
[1734481037551,12.9513382,225.55,225.46,4.87709631]
[1734481037864,12.9513382,225.57,225.46,4.87709631]
[1734481038045,0.47860152,225.56,225.46,4.87709631]
[1734481038433,13.42993972,225.56,225.47,20.0]
[1734481039046,12.9513382,225.54,225.42,3.30427467]
[1734481039249,12.9513382,225.61,225.42,0.66509128]
[1734481039250,12.9513382,225.51,225.42,0.66509128]
[1734481039455,0.47860152,225.5,225.4,5.54232998]
[1734481040064,13.42993972,225.5,225.4,5.54232998]
[1734481040259,12.9513382,225.49,225.4,4.87709631]
[1734481040557,0.47860152,225.5,225.33,4.73837613]
[1734481040558,12.9513382,225.46,225.36,0.66535091]
[1734481041060,0.47860152,225.45,225.36,0.66535091]
[1734481041465,0.47860152,225.45,225.34,0.66540837]
[1734481042237,0.47860152,225.45,225.36,20.0]
[1734481043144,0.47860152,225.51,225.37,0.66544477]
[1734481043338,0.47860152,225.51,225.4,20.0]
[1734481043545,12.9513382,225.5,225.4,20.0]
[1734481043755,0.47860152,225.49,225.4,20.0]
[1734481044939,12.9513382,225.46,225.37,24.87709631]
[1734481045141,0.47860152,225.45,225.35,20.0]
[1734481046084,0.47860152,225.45,225.36,0.66542211]
[1734481046549,12.9513382,225.5,225.36,0.66542211]
[1734481046746,0.47860152,225.49,225.39,20.0]
[1734481046949,0.47860152,225.49,225.39,20.66530278]
[1734481047773,6.0075,225.52,225.39,20.66530278]
[1734481047975,6.48610152,225.52,225.39,25.54239909]
[1734481048575,19.43743972,225.52,225.39,25.54239909]
[1734481048899,0.47860152,225.52,225.43,20.0]
[1734481049103,1.5593,225.59,225.43,20.0]
[1734481049104,12.9513382,225.51,225.43,20.0]
[1734481049409,0.47860152,225.58,225.43,20.0]
[1734481049563,12.9513382,225.53,225.43,20.0]
[1734481049912,0.47860152,225.52,225.43,20.0]
[1734481050399,12.9513382,225.55,225.44,0.6651972]
[1734481050605,12.9513382,225.57,225.44,0.6651972]
[1734481050952,1.5593,225.59,225.48,20.0]
[1734481051107,2.03790152,225.59,225.49,0.665019]
[1734481051605,1.5593,225.59,225.49,0.665019]
[1734481052865,2.03790152,225.59,225.49,0.665019]
[1734481053907,6.647,225.69,225.55,20.0]
[1734481054199,6.647,225.69,225.56,0.66472407]
[1734481054401,7.12560152,225.69,225.56,0.66472407]
[1734481056488,20.07693972,225.69,225.56,0.66472407]
[1734481057188,20.07693972,225.69,225.56,20.66472407]
[1734481057871,12.9513382,225.68,225.58,20.0]
[1734481058073,12.9513382,225.65,225.58,20.0]
[1734481058273,13.42993972,225.64,225.55,4.87709631]
[1734481058497,0.47860152,225.64,225.55,5.54198147]
[1734481058888,12.9513382,225.66,225.55,5.54198147]
[1734481060692,0.47860152,225.65,225.55,5.54198147]
[1734481063195,12.9513382,225.66,225.55,5.54198147]
[1734481063515,0.47860152,225.65,225.55,8.25191055]
[1734481064199,13.42993972,225.68,225.55,8.25191055]
[1734481064400,12.9513382,225.69,225.58,20.0]
[1734481064618,0.47860152,225.68,225.59,0.66470408]
[1734481064808,12.9513382,225.69,225.59,0.66470408]
[1734481065117,0.47860152,225.68,225.59,0.66470408]
[1734481065290,12.9513382,225.69,225.59,0.66470408]
[1734481065494,13.42993972,225.68,225.58,20.0]
[1734481065715,12.9513382,225.66,225.58,20.0]
[1734481066117,0.47860152,225.65,225.58,20.0]
[1734481066326,12.9513382,225.66,225.58,20.0]
[1734481066830,0.47860152,225.65,225.56,0.66470407]
[1734481069803,0.47860152,225.71,225.58,20.0]
[1734481070013,12.9513382,225.7,225.59,20.66466174]
[1734481071210,12.76295649,225.7,225.59,20.66466174]
[1734481071408,12.9513382,225.7,225.59,20.66466174]
[1734481071815,2.10350152,225.73,225.59,20.66466174]
[1734481071816,12.9513382,225.69,225.59,20.66466174]
[1734481073230,2.10350152,225.73,225.59,20.66466174]
[1734481073407,12.9513382,225.7,225.59,20.66466174]
[1734481073603,0.47860152,225.69,225.59,20.66466174]
[1734481075406,12.94522185,225.68,225.59,20.0]
[1734481075609,0.47860152,225.67,225.59,20.0]
[1734481075809,13.42382337,225.67,225.56,4.87709631]
[1734481077135,13.42382337,225.67,225.57,0.6647835]
[1734481079417,13.12727787,225.75,225.61,20.0]
[1734481079606,0.18205602,225.75,225.63,23.776884]
[1734481079804,0.18205602,225.75,225.64,0.66450058]
[1734481080415,0.18205602,225.75,225.67,20.0]
[1734481080648,0.18205602,225.75,225.67,20.66448602]
[1734481080816,0.18205602,225.75,225.67,20.0]
[1734481081257,0.18205602,225.75,225.68,0.66448858]
[1734481082779,0.18205602,225.75,225.71,20.0]
[1734481083368,0.18205602,225.75,225.68,7.13378489]
[1734481083669,0.18205602,225.75,225.68,4.87709631]
[1734481083870,12.93686254,225.69,225.57,4.73837613]
[1734481084070,12.93686254,225.63,225.57,4.73837613]
[1734481084271,12.93686254,225.63,225.54,4.86551243]
[1734481084467,0.47860152,225.71,225.54,4.86551243]
[1734481084667,12.93686254,225.65,225.54,4.86551243]
[1734481085174,12.93686254,225.65,225.55,20.0]
[1734481085374,12.93686254,225.65,225.56,0.66477754]
[1734481085875,0.47860152,225.71,225.56,0.66477754]
[1734481085876,12.93686254,225.66,225.56,0.66477754]
[1734481086180,12.93686254,225.67,225.56,0.66477754]
[1734481090980,12.93686254,225.64,225.56,0.66477754]
[1734481091559,12.93686254,225.65,225.56,0.66477754]
[1734481092563,12.93686254,225.64,225.55,0.66480853]
[1734481092759,12.93686254,225.65,225.55,0.66480853]
[1734481094090,12.93686254,225.63,225.53,0.6648257]
[1734481094254,12.93686254,225.72,225.53,0.6648257]
[1734481094255,13.41546406,225.62,225.53,0.6648257]
[1734481094860,12.93686254,225.64,225.53,0.6648257]
[1734481095361,13.41546406,225.63,225.53,0.6648257]
[1734481095560,12.93686254,225.62,225.53,0.6648257]
[1734481096080,12.93686254,225.63,225.53,0.6648257]
[1734481096288,0.47860152,225.62,225.53,0.6648257]
[1734481097075,12.93686254,225.63,225.53,0.6648257]
[1734481097883,1.6522,225.65,225.53,0.6648257]
[1734481098279,1.6522,225.65,225.55,20.0]
[1734481098479,1.6522,225.65,225.56,0.6647555]
[1734481099074,12.93686254,225.67,225.56,0.6647555]
[1734481099709,12.93686254,225.66,225.56,0.6647555]
[1734481101364,12.93686254,225.65,225.56,0.6647555]
[1734481102710,12.93686254,225.63,225.55,20.0]
[1734481103381,12.93686254,225.62,225.55,20.0]
[1734481103562,12.93686254,225.63,225.55,20.0]
[1734481104369,12.93686254,225.57,225.5,6.74865407]
[1734481104794,12.93686254,225.57,225.48,0.66487087]
[1734481105090,12.93686254,225.56,225.48,0.66487087]
[1734481105291,6.5085,225.64,225.48,0.66487087]
[1734481105292,1.6522,225.67,225.48,0.66487087]
[1734481105468,0.47860152,225.66,225.49,23.19744451]
[1734481105668,13.41546406,225.66,225.5,11.17665407]
[1734481105864,12.93686254,225.64,225.53,20.0]
[1734481106089,12.93686254,225.64,225.54,0.66484335]
[1734481106265,12.93686254,225.62,225.54,0.66484335]
[1734481106668,12.93686254,225.64,225.54,0.66484335]
[1734481107088,0.47860152,225.63,225.54,0.66484335]
[1734481107279,0.47860152,225.63,225.53,20.0]
[1734481107472,12.93686254,225.62,225.53,20.0]
[1734481107697,12.93686254,225.62,225.51,0.66490765]
[1734481107698,0.47860152,225.61,225.51,0.66490765]
[1734481108169,0.47860152,225.61,225.5,0.66495412]
[1734481108792,12.93686254,225.59,225.5,0.66495412]
[1734481108978,12.93686254,225.59,225.5,20.66495412]
[1734481109177,12.93686254,225.59,225.5,0.66495412]
[1734481109495,12.93686254,225.58,225.49,0.66501107]
[1734481109684,13.41546406,225.58,225.47,0.6650433]
[1734481110104,12.93686254,225.57,225.47,0.6650433]
[1734481110397,12.93686254,225.57,225.46,15.45396072]
[1734481110398,13.41546406,225.56,225.45,0.66506082]
[1734481110598,12.93686254,225.55,225.45,0.66506082]
[1734481111304,13.41546406,225.54,225.44,0.66511585]
[1734481111613,12.93686254,225.53,225.43,0.66518581]
[1734481111783,0.47860152,225.52,225.43,0.66518581]
[1734481112395,12.93686254,225.51,225.41,6.78920013]
[1734481112698,0.47860152,225.52,225.41,6.78920013]
[1734481112699,12.93686254,225.52,225.41,6.78920013]
[1734481112886,0.47860152,225.51,225.41,6.78920013]
[1734481113286,0.47860152,225.51,225.41,0.66520013]
[1734481113728,0.47860152,225.51,225.41,20.66520013]
[1734481114086,13.41546406,225.51,225.41,0.66520013]
[1734481114408,12.93686254,225.49,225.39,1.5895]
[1734481114606,12.93686254,225.49,225.38,5.27266043]
[1734481114607,0.47860152,225.48,225.38,5.27266043]
[1734481114834,0.29021585,225.48,225.38,5.27266043]
[1734481115312,12.93686254,225.47,225.38,4.60736359]
[1734481115511,0.29021585,225.46,225.37,0.66540847]
[1734481115893,12.93686254,225.49,225.37,0.66540847]
[1734481116214,0.29021585,225.48,225.37,0.66540847]
[1734481116588,12.93686254,225.51,225.39,20.0]
[1734481116788,0.29021585,225.52,225.4,20.66524618]
[1734481116988,6.5269,225.53,225.4,20.66524618]
[1734481117196,12.93686254,225.55,225.42,20.0]
[1734481117418,12.93686254,225.55,225.43,20.66511733]
[1734481117712,13.22707839,225.54,225.43,20.66511733]
[1734481119318,0.29021585,225.54,225.43,20.66511733]
[1734481119522,12.93686254,225.55,225.43,20.66511733]
[1734481119703,13.22707839,225.54,225.43,20.66511733]
[1734481119904,12.93686254,225.53,225.43,20.66511733]